bitfinex/quotes_ETHUSD_20251128
["timestamp","ask_amount","ask_price","bid_price","bid_amount"]
[1764340335569,0.002,3082.0,3081.3,0.22]
[1764340335773,0.002,3082.0,3081.4,0.22]
[1764340336499,3.24664633,3082.0,3080.8,6.49172377]
[1764340336697,3.96642275,3082.0,3080.8,6.52418287]
[1764340337001,0.72177642,3082.0,3080.9,0.22]
[1764340337169,0.002,3082.0,3080.9,0.7087]
[1764340337776,0.002,3082.0,3081.0,0.22]
[1764340338208,0.002,3082.0,3081.1,0.4158]
[1764340338509,0.002,3082.0,3081.2,0.22]
[1764340338997,0.002,3082.0,3081.1,0.1958]
[1764340339499,0.002,3082.0,3080.9,3.24580479]
[1764340339700,0.10185404,3082.0,3081.2,0.22]
[1764340340000,0.30320538,3082.0,3081.3,0.22]
[1764340340200,0.30330402,3082.0,3081.3,0.22]
[1764340340366,0.30332721,3082.0,3081.3,0.22]
[1764340340571,0.002,3082.0,3081.3,0.22]
[1764340340797,0.002,3082.0,3081.3,3.46528286]
[1764340341003,0.002,3082.0,3081.1,3.44136427]
[1764340341004,0.002,3082.0,3081.4,0.22]
[1764340341169,0.002,3082.0,3081.5,0.22]
[1764340341714,0.002,3082.0,3080.7,0.458]
[1764340341715,0.002,3082.0,3081.6,0.22]
[1764340343177,0.3973429,3082.0,3081.6,0.22]
[1764340343382,0.30160367,3081.9,3081.6,0.22]
[1764340343641,0.30160367,3081.9,3080.8,3.24585487]
[1764340343801,0.30160367,3081.8,3080.9,0.219]
[1764340344000,0.30162841,3081.9,3081.0,0.219]
[1764340344203,0.30163431,3081.8,3081.0,0.219]
[1764340344391,0.30176564,3081.7,3081.1,0.219]
[1764340344703,0.30176564,3081.9,3081.1,0.219]
[1764340344904,3.54665961,3081.8,3080.6,3.24609246]
[1764340345102,0.30176564,3081.7,3080.7,0.219]
[1764340345403,0.67059103,3081.8,3080.8,0.219]
[1764340345588,3.97039247,3081.9,3080.6,6.49221334]
[1764340345589,0.30193194,3081.7,3080.7,0.49046015]
[1764340345901,0.72559411,3081.9,3080.5,0.001]
[1764340345902,0.405504,3080.9,3080.5,0.001]
[1764340346072,7.54465651,3080.6,3080.5,0.001]
[1764340346267,0.30193195,3080.6,3080.5,0.001]
[1764340346810,1.13109811,3081.2,3080.5,0.22]
[1764340346979,0.302109,3081.1,3080.5,3.46622013]
[1764340347186,0.302109,3081.1,3080.5,0.001]
[1764340347187,0.302109,3081.0,3080.5,0.001]
[1764340347413,0.302109,3080.9,3080.5,0.001]
[1764340347618,0.72559411,3081.1,3080.5,0.001]
[1764340347619,0.72559411,3080.6,3080.5,0.001]
[1764340347931,1.43320711,3080.6,3080.5,0.001]
[1764340348087,1.53306115,3080.6,3080.5,0.001]
[1764340348611,1.43320711,3080.6,3080.5,0.001]
[1764340349014,4.67932799,3080.6,3080.5,0.001]
[1764340349321,0.60535804,3082.1,3082.0,67.50440939]
[1764340349519,0.60535804,3082.1,3082.0,46.88231665]
[1764340349520,0.82435804,3082.1,3082.0,46.88231665]
[1764340349814,4.41592224,3082.1,3082.0,46.88231665]
[1764340350013,4.31592224,3082.1,3082.0,46.88231665]
[1764340350328,4.31592224,3082.1,3082.0,39.45255059]
[1764340350329,0.31885404,3082.1,3082.0,39.45255059]
[1764340350533,6.73241244,3082.1,3082.0,39.45255059]
[1764340351035,9.97695349,3082.1,3082.0,39.45255059]
[1764340351183,10.60269356,3082.1,3082.0,37.71547997]
[1764340351387,11.1080516,3082.1,3082.0,32.02278453]
[1764340352184,11.1080516,3082.1,3082.0,30.28571391]
[1764340352898,11.1092516,3082.1,3082.0,30.28571391]
[1764340353500,11.1092516,3082.1,3082.0,22.85594785]
[1764340354317,14.5312516,3082.1,3082.0,22.85594785]
[1764340354695,3.422,3081.9,3080.9,0.001]
[1764340354886,0.09985404,3080.6,3080.5,0.001]
[1764340355093,4.87195215,3080.6,3080.5,0.001]
[1764340355301,4.69607303,3080.6,3080.5,0.001]
[1764340355625,0.405504,3080.3,3078.4,0.1958]
[1764340355810,7.64451055,3079.9,3078.5,3.24825172]
[1764340356139,7.64451055,3079.9,3079.1,0.1958]
[1764340356614,7.23900655,3079.9,3079.1,0.1958]
[1764340356993,0.72559411,3079.9,3079.1,0.1958]
[1764340357191,6.8190624,3080.3,3079.3,0.458]
[1764340357192,0.72559411,3080.2,3079.3,0.458]
[1764340357420,0.72559411,3080.5,3079.6,0.219]
[1764340357735,0.72559411,3080.5,3079.7,0.219]
[1764340358026,0.82544815,3080.6,3079.7,0.677]
[1764340358192,0.82544815,3080.6,3079.7,0.219]
[1764340358193,7.31783537,3080.6,3079.7,0.219]
[1764340358393,0.405504,3080.5,3079.7,0.219]
[1764340359212,0.72559411,3080.3,3079.2,3.70559677]
[1764340359390,0.72559411,3080.3,3079.6,0.219]
[1764340359593,0.72559411,3080.3,3080.0,0.5]
[1764340359924,0.82544815,3080.3,3080.0,0.5]
[1764340360124,0.09985404,3080.3,3080.0,0.5]
[1764340360423,1.13109811,3080.8,3080.1,0.1958]
[1764340360600,4.97731329,3080.8,3080.1,0.1958]
[1764340360802,0.09985404,3081.2,3080.1,0.1958]
[1764340360997,0.405504,3081.1,3080.1,0.1958]
[1764340361326,0.09985404,3081.2,3080.1,0.1958]
[1764340361327,0.72559411,3080.8,3080.1,0.1904]
[1764340361527,0.30189928,3080.7,3080.1,0.1904]
[1764340361733,1.02749339,3080.8,3080.1,0.1904]
[1764340361898,0.30189928,3080.7,3080.1,0.1904]
[1764340362444,0.30189928,3080.7,3080.0,0.5]
[1764340362445,3.827504,3080.4,3080.0,0.5]
[1764340362628,1.23095215,3080.1,3080.0,0.5]
[1764340362832,1.53285143,3080.1,3080.0,0.5]
[1764340363210,4.77949926,3080.1,3080.0,0.5]
[1764340364736,14.61505766,3080.1,3080.0,0.5]
[1764340365047,4.95485143,3080.1,3080.0,0.5]
[1764340365209,8.20149926,3080.1,3080.0,0.5]
[1764340365414,8.10164522,3080.1,3080.0,0.5]
[1764340365651,8.30149926,3080.1,3080.0,0.5]
[1764340365810,8.20149926,3080.1,3080.0,0.5]
[1764340366228,8.10164522,3080.1,3080.0,0.5]
[1764340366429,8.20149926,3080.1,3080.0,0.5]
[1764340366763,0.50535804,3077.5,3076.4,0.001]
[1764340366923,4.44949339,3077.4,3076.5,0.4854]
[1764340367111,1.43299739,3077.4,3076.5,0.4854]
[1764340367316,4.78082922,3077.4,3076.5,0.4854]
[1764340367625,4.78082922,3077.4,3076.4,0.001]
[1764340368344,4.48044847,3077.4,3076.4,0.001]
[1764340368544,1.23095215,3077.4,3076.4,0.001]
[1764340368845,1.23095215,3077.4,3076.7,0.4854]
[1764340369042,1.13109811,3077.4,3077.1,0.1904]
[1764340369367,0.16526203,3077.6,3077.1,0.1904]
[1764340369659,0.16526203,3077.6,3077.1,3.44019781]
[1764340369955,0.16526203,3077.6,3077.4,0.4854]
[1764340370114,0.16526203,3077.6,3077.1,0.1904]
[1764340370616,0.16526203,3077.6,3076.4,0.001]
[1764340370617,0.405504,3077.5,3076.6,0.4854]
[1764340370821,1.23095215,3077.4,3076.6,0.4854]
[1764340371347,0.50535804,3077.4,3076.6,0.4854]
[1764340371535,0.16526203,3077.6,3077.1,0.1904]
[1764340371864,0.89085614,3077.6,3077.1,0.1904]
[1764340372013,0.16526203,3077.6,3077.4,0.001]
[1764340372350,0.72559411,3077.7,3077.4,0.001]
[1764340372570,0.09985404,3077.8,3077.4,0.001]
[1764340372849,0.405504,3077.9,3077.4,0.4864]
[1764340373145,0.09985404,3078.1,3077.4,0.4864]
[1764340373323,3.24886289,3078.0,3077.4,0.4864]
[1764340373529,1.16031984,3077.9,3077.4,0.001]
[1764340373716,0.405504,3077.8,3077.4,0.001]
[1764340373916,1.16031984,3077.9,3077.4,0.001]
[1764340374154,0.405504,3077.8,3077.4,0.001]
[1764340374371,1.13656624,3077.8,3077.4,0.001]
[1764340374646,0.405504,3077.8,3077.4,0.001]
[1764340374850,0.50535804,3077.8,3077.4,0.001]
[1764340375051,0.405504,3077.9,3077.4,0.001]
[1764340375249,3.34907701,3077.7,3077.4,0.001]
[1764340375552,0.72559411,3077.6,3077.4,0.001]
[1764340375738,0.50535804,3077.5,3077.4,0.001]
[1764340376461,0.80465953,3077.5,3077.4,0.001]
[1764340376824,0.80385953,3077.5,3077.4,0.001]
[1764340377470,4.77884437,3077.5,3077.4,0.001]
[1764340378553,4.67899033,3077.5,3077.4,0.001]
[1764340378741,5.11238889,3077.5,3077.4,0.001]
[1764340379157,1.86299816,3077.5,3077.4,0.001]
[1764340379459,5.11238889,3077.5,3077.4,0.001]
[1764340380344,1.12474964,3077.5,3077.4,0.001]
[1764340380654,0.72559411,3077.5,3077.4,0.001]
[1764340380858,4.37409542,3077.5,3077.4,0.001]
[1764340381050,4.77958874,3077.5,3077.4,0.001]
[1764340381362,4.77958874,3077.5,3076.7,0.001]
[1764340381363,0.405504,3077.2,3076.7,0.001]
[1764340381562,19.46125144,3076.8,3076.7,0.001]
[1764340381868,19.46125144,3076.8,3074.4,0.1904]
[1764340381869,3.422,3076.4,3074.4,0.1904]
[1764340382025,8.66691315,3076.1,3074.5,0.4854]
[1764340382228,9.64910971,3076.1,3074.5,0.4854]
[1764340382428,8.47932671,3076.1,3074.5,0.4854]
[1764340383078,8.57932671,3076.1,3074.5,0.4854]
[1764340383278,12.08548571,3076.1,3074.5,0.4854]
[1764340383430,14.46936131,3076.1,3074.4,0.1904]
[1764340383633,9.47970431,3076.1,3074.7,0.4854]
[1764340383832,6.27570431,3076.1,3075.1,0.1904]
[1764340384063,5.58704267,3076.1,3075.1,0.6758]
[1764340384379,4.99906761,3076.1,3075.1,0.6758]
[1764340384729,4.99906761,3076.1,3075.6,0.4854]
[1764340384730,4.27570957,3076.1,3075.6,0.4854]
[1764340384927,1.12469401,3076.1,3075.6,0.4854]
[1764340385230,3.64850552,3076.1,3075.1,0.6758]
[1764340385431,1.12323003,3076.1,3075.1,0.1904]
[1764340385667,4.37409963,3076.1,3075.5,0.4854]
[1764340385874,0.29778188,3076.1,3075.5,0.4854]
[1764340386074,0.50535804,3076.2,3075.5,0.4854]
[1764340386275,3.75613772,3076.2,3075.5,0.4854]
[1764340386435,0.50535804,3076.2,3075.5,0.4854]
[1764340386767,1.13109811,3076.1,3075.5,0.4854]
[1764340387438,4.38196771,3076.1,3075.5,0.4854]
[1764340388154,4.38196771,3076.1,3076.0,0.4864]
[1764340388155,0.72559411,3076.1,3076.0,0.4864]
[1764340388572,0.72559411,3076.1,3076.0,0.001]
[1764340388573,3.97646371,3076.1,3076.0,0.001]
[1764340388864,4.07631775,3076.1,3076.0,0.001]
[1764340389035,5.2145293,3076.1,3076.0,0.001]
[1764340389435,5.5119247,3076.1,3076.0,0.001]
[1764340390034,2.16120106,3076.1,3076.0,0.001]
[1764340390238,4.77921715,3076.1,3076.0,0.001]
[1764340391050,1.02298951,3076.1,3076.0,0.001]
[1764340391250,4.37371315,3076.1,3076.0,0.001]
[1764340391542,1.52834755,3076.1,3076.0,0.001]
[1764340391733,4.77921715,3076.1,3076.0,0.001]
[1764340392377,1.42849351,3076.1,3076.0,0.001]
[1764340392562,0.002,3076.6,3076.1,0.1834]
[1764340393070,0.002,3076.6,3076.2,0.4528]
[1764340393071,0.1,3076.5,3076.2,0.4528]
[1764340393267,0.1,3076.5,3076.1,0.1834]
[1764340393700,0.002,3076.6,3076.1,0.1834]
[1764340393851,0.1,3076.4,3076.2,0.4528]
[1764340394052,0.002,3076.6,3076.2,0.4528]
[1764340394539,6.6028913,3076.6,3076.1,0.1834]
[1764340394743,0.1,3076.4,3076.1,0.1834]
[1764340395145,0.72759411,3076.6,3076.2,0.4528]
[1764340395458,0.002,3076.6,3076.2,0.4528]
[1764340396048,0.002,3076.6,3076.2,6.95432784]
[1764340396269,0.002,3076.6,3076.2,7.66820062]
[1764340396469,0.002,3076.6,3076.3,0.4528]
[1764340396771,0.002,3076.9,3076.3,0.4528]
[1764340396772,0.002,3076.9,3076.4,0.218]
[1764340396974,0.6940309,3077.8,3076.5,0.4528]
[1764340397295,2.30998972,3078.9,3076.5,0.4528]
[1764340397296,0.6940309,3078.2,3077.0,0.1251]
[1764340397593,0.6940309,3078.7,3077.2,0.72559411]
[1764340397742,0.6940309,3078.7,3077.1,23.29746386]
[1764340397743,0.69446235,3079.1,3078.1,0.1834]
[1764340397943,7.18973755,3079.2,3078.1,0.1834]
[1764340398194,0.1,3078.8,3078.2,0.4528]
[1764340398476,1.42005646,3079.1,3078.2,0.4528]
[1764340398846,0.1,3078.9,3078.2,0.4528]
[1764340399469,0.1,3078.9,3078.1,0.1834]
[1764340399470,6.4960374,3078.8,3078.1,0.1834]
[1764340399644,0.69464607,3078.7,3078.1,0.1834]
[1764340399858,3.94258617,3078.9,3078.2,0.4767]
[1764340400076,0.1,3078.8,3078.2,0.4767]
[1764340400397,0.65958802,3078.7,3078.2,0.4767]
[1764340400987,0.1,3078.6,3078.1,0.1834]
[1764340401308,0.75878802,3078.7,3078.1,0.6601]
[1764340401515,0.0992,3078.4,3077.7,0.1845]
[1764340401695,0.72559411,3078.6,3078.2,0.4767]
[1764340401899,3.90773427,3078.7,3078.2,0.4767]
[1764340402117,0.40634591,3078.6,3077.7,0.1845]
[1764340402322,0.0992,3078.4,3077.7,0.1845]
[1764340402525,0.40634591,3078.6,3077.7,0.6612]
[1764340402726,0.72559411,3078.8,3077.8,0.4767]
[1764340403012,3.24749131,3079.3,3077.8,0.6947]
[1764340403214,3.24749131,3079.3,3077.9,0.4767]
[1764340403415,0.82479411,3079.2,3077.9,0.4767]
[1764340403617,0.72559411,3079.0,3077.9,6.97461415]
[1764340403819,3.97297996,3079.4,3079.1,0.1845]
[1764340404118,3.97297996,3079.4,3077.9,10.2235826]
[1764340404119,6.49465126,3079.5,3078.0,0.4767]
[1764340404272,0.72559411,3079.4,3078.0,0.4767]
[1764340404481,0.72559411,3079.4,3077.7,0.1845]
[1764340404482,0.0992,3079.2,3077.7,0.1845]
[1764340404771,0.0992,3079.2,3076.2,3.96461078]
[1764340404772,0.405504,3077.7,3077.1,0.1845]
[1764340404998,0.30098184,3078.0,3077.1,0.1845]
[1764340405195,1.14668425,3078.7,3077.2,0.4767]
[1764340405196,0.0992,3078.1,3077.2,0.4767]
[1764340405394,0.30098184,3078.0,3077.2,0.4767]
[1764340405608,3.86692723,3078.2,3077.3,0.72559411]
[1764340405784,0.218,3078.2,3077.2,0.4767]
[1764340405983,0.3172,3078.2,3077.3,0.4767]
[1764340406216,0.0992,3077.9,3077.3,0.4767]
[1764340406506,0.218,3078.2,3077.3,0.4767]
[1764340406507,0.0992,3077.8,3077.3,0.4767]
[1764340406802,0.218,3078.2,3077.3,0.4767]
[1764340407007,0.51902691,3078.2,3077.3,0.4767]
[1764340407210,0.0992,3078.0,3077.3,0.4767]
[1764340407407,0.3172,3078.0,3077.3,0.4767]
[1764340407711,3.24896845,3077.9,3077.3,0.4767]
[1764340408084,6.4979369,3077.9,3077.3,0.4767]
[1764340408282,0.97235926,3077.8,3077.3,0.4767]
[1764340408482,0.67159369,3077.8,3077.3,0.4767]
[1764340409511,3.24896845,3077.9,3077.3,0.4767]
[1764340409713,0.30095191,3077.8,3077.3,0.4767]
[1764340409888,7.44045301,3078.0,3077.3,0.4777]
[1764340409889,0.30095191,3077.9,3077.3,0.4777]
[1764340410287,3.24886342,3078.0,3077.3,3.72729846]
[1764340410593,6.49772684,3078.0,3077.3,0.4777]
[1764340410793,0.0992,3077.8,3077.3,0.4777]
[1764340411580,6.49835916,3077.7,3077.3,0.001]
[1764340411813,3.34832321,3077.8,3077.3,0.001]
[1764340411996,3.46601296,3077.9,3077.4,0.4767]
[1764340412198,0.217,3078.0,3077.4,0.4767]
[1764340412562,0.30114543,3078.3,3077.4,0.4767]
[1764340412695,0.002,3078.8,3077.5,0.0324939]
[1764340412895,0.002,3078.8,3078.7,0.1845]
[1764340413416,0.002,3078.8,3078.3,0.4767]
[1764340413417,3.2500187,3078.8,3078.3,0.4767]
[1764340413617,0.002,3078.8,3078.5,0.1845]
[1764340414126,0.002,3078.8,3078.6,0.4767]
[1764340414921,0.002,3078.8,3078.6,1.19248346]
[1764340415127,0.002,3078.8,3078.6,0.4767]
[1764340415316,0.002,3078.8,3078.7,0.4767]
[1764340416000,0.002,3078.8,3078.7,3.7248242]
[1764340417808,0.002,3079.2,3078.7,6.9729484]
[1764340418007,0.002,3079.2,3079.1,0.1845]
[1764340418407,0.002,3079.2,3079.1,0.6612]
[1764340419626,0.002,3079.2,3078.5,0.1845]
[1764340419627,0.002,3079.2,3078.6,0.4767]
[1764340420234,0.65170429,3079.2,3078.6,0.4767]
[1764340421131,0.002,3079.2,3078.6,6.97305578]
[1764340421298,0.002,3079.2,3078.6,3.72482607]
[1764340421502,0.002,3079.2,3078.7,0.4543]
[1764340421714,0.002,3079.2,3078.7,1.17989411]
[1764340421912,0.002,3079.2,3078.8,6.4960374]
[1764340422208,0.002,3079.2,3078.9,0.217]
[1764340422402,0.002,3079.2,3079.1,0.4872]
[1764340422831,0.002,3079.2,3079.1,0.9415]
[1764340423327,0.002,3079.2,3079.1,1.1585]
[1764340423528,0.002,3079.2,3079.1,1.1574]
[1764340423931,0.002,3079.2,3079.1,0.4861]
[1764340424102,0.002,3079.2,3078.6,0.4543]
[1764340424303,0.002,3079.2,3078.5,0.1845]
[1764340424507,0.1012,3079.2,3078.5,0.1845]
[1764340424703,0.3172,3079.2,3078.3,0.1848]
[1764340424911,0.51978005,3079.2,3078.3,0.1848]
[1764340425258,0.0012,3079.2,3078.4,0.6713]
[1764340425411,0.0012,3079.2,3078.5,0.03248335]
[1764340425612,0.0012,3079.2,3078.5,1.21237746]
[1764340425851,0.0012,3079.2,3078.6,0.405504]
[1764340426143,0.002,3079.5,3078.8,0.72559411]
[1764340426309,0.002,3079.5,3078.9,0.85167183]
[1764340426818,0.002,3079.5,3079.0,0.4543]
[1764340427221,0.002,3079.5,3079.1,0.405504]
[1764340427411,0.002,3079.5,3079.3,0.405504]
[1764340427943,0.002,3080.6,3080.3,1.13109811]
[1764340428116,0.002,3080.6,3080.4,1.30407254]
[1764340428434,0.002,3080.6,3080.5,0.4543]
[1764340429401,0.002,3080.6,3080.5,0.6703]
[1764340430017,0.002,3080.6,3080.5,4.64212037]
[1764340430219,0.002,3080.6,3080.5,1.39589411]
[1764340430426,0.002,3080.6,3080.5,4.64212037]
[1764340431022,0.002,3080.6,3079.5,7.04839821]
[1764340431284,0.002,3080.6,3080.1,0.1848]
[1764340431550,0.002,3080.6,3080.2,0.216]
[1764340431837,0.002,3080.6,3080.2,0.6703]
[1764340432040,0.002,3080.6,3080.2,3.91682372]
[1764340432227,0.002,3080.6,3080.3,0.4543]
[1764340432607,0.002,3080.6,3080.3,1.59005835]
[1764340433015,0.002,3080.6,3080.4,0.4543]
[1764340434016,0.002,3080.6,3080.5,0.72559411]
[1764340434434,0.002,3080.6,3080.5,1.17989411]
[1764340434912,0.002,3080.6,3080.5,8.22829232]
[1764340435651,0.002,3080.6,3079.7,3.88613145]
[1764340435828,0.002,3080.6,3079.8,0.216]
[1764340436022,0.002,3080.6,3079.8,3.46291629]
[1764340436247,0.002,3080.6,3079.8,7.16418037]
[1764340436454,0.32679101,3080.6,3079.8,0.216]
[1764340436615,0.32679101,3080.6,3079.8,3.46295574]
[1764340436813,0.32679101,3080.6,3079.8,6.70991982]
[1764340437034,0.002,3080.6,3079.8,7.16419056]
[1764340437415,0.002,3080.6,3079.8,3.91722648]
[1764340438062,0.002,3080.6,3079.7,0.03247069]
[1764340438063,0.1962,3079.9,3079.7,0.03247069]
[1764340438274,0.1962,3079.9,3078.5,0.4553]
[1764340438420,0.2954,3079.9,3078.6,0.4543]
[1764340438624,0.1962,3079.9,3078.6,0.48678229]
[1764340438823,0.1962,3079.9,3078.7,0.79260254]
[1764340439021,0.1962,3079.9,3078.8,0.03248018]
[1764340439239,0.1962,3079.9,3078.7,1.24690254]
[1764340439641,0.49710625,3079.9,3078.7,1.24690254]
[1764340439826,0.8693342,3080.5,3078.5,7.4392431]
[1764340439827,0.8693342,3080.5,3078.8,0.4543]
[1764340440046,0.1962,3080.7,3079.4,0.72559411]
[1764340440047,0.6628,3080.7,3079.4,0.72559411]
[1764340440248,3.54947949,3080.6,3079.5,0.2484728]
[1764340440564,0.30135861,3080.5,3079.5,0.8875728]
[1764340440925,0.40055861,3080.5,3079.5,0.8551]
[1764340441270,0.30135861,3080.5,3079.5,0.8551]
[1764340441502,0.30135861,3080.5,3079.6,1.29431484]
[1764340441655,0.002,3080.6,3079.7,0.03247069]
[1764340441854,0.002,3080.6,3079.8,0.405504]
[1764340441855,0.30335861,3080.6,3079.8,0.405504]
[1764340442095,0.002,3080.6,3079.9,3.27932724]
[1764340442255,0.002,3080.6,3080.0,0.216]
[1764340442458,0.30135861,3080.5,3080.0,0.0011]
[1764340442669,0.30135861,3080.4,3080.0,0.0011]
[1764340442878,0.30135861,3080.5,3080.0,0.0011]
[1764340443054,0.30135861,3080.4,3080.0,0.0011]
[1764340443366,0.30135861,3080.3,3080.0,0.0011]
[1764340443687,0.002,3080.6,3080.0,0.0011]
[1764340443688,0.30135861,3080.2,3080.0,0.0011]
[1764340443863,0.30135861,3080.1,3080.0,0.0011]
[1764340444184,0.30135861,3080.4,3080.0,0.0011]
[1764340444384,0.30135861,3080.3,3080.0,0.0011]
[1764340444586,0.30135861,3080.2,3080.0,0.0011]
[1764340444763,0.002,3080.6,3080.0,0.0011]
[1764340444764,0.30135861,3080.1,3080.0,0.0011]
[1764340444969,0.30135861,3080.5,3080.0,0.0011]
[1764340445293,0.30135861,3080.4,3080.0,0.0011]
[1764340445499,0.30135861,3080.3,3080.0,0.0011]
[1764340445698,3.24822419,3080.6,3080.0,0.0011]
[1764340445699,0.30135861,3080.5,3080.0,0.0011]
[1764340445886,0.30135861,3080.4,3080.0,0.0011]
[1764340446197,0.30135861,3080.3,3080.0,0.0011]
[1764340446403,0.002,3080.6,3080.0,0.0011]
[1764340446404,0.30135861,3080.4,3080.0,0.0011]
[1764340446572,0.30135861,3080.3,3080.0,0.0011]
[1764340446762,0.30135861,3080.5,3080.0,0.48786753]
[1764340446964,0.30135861,3080.5,3080.0,0.891251]
[1764340447381,0.30135861,3080.5,3080.1,0.4543]
[1764340447581,0.002,3080.6,3080.1,0.4543]
[1764340448169,0.002,3080.6,3080.2,6.49308486]
[1764340448383,0.002,3080.6,3080.2,9.73962729]
[1764340448682,0.002,3080.6,3080.3,0.4543]
[1764340448887,0.002,3080.6,3080.4,0.216]
[1764340449268,0.002,3080.6,3080.4,0.6703]
[1764340449465,0.0012,3080.6,3080.4,0.216]
[1764340449671,0.0012,3080.6,3080.5,0.4543]
[1764340450329,0.0012,3080.6,3080.5,3.70052626]
[1764340450534,0.0012,3080.6,3080.4,0.216]
[1764340450688,0.0012,3080.6,3080.4,0.6926]
[1764340451075,0.0012,3080.6,3080.4,0.216]
[1764340451280,0.0012,3080.6,3080.4,3.46232877]
[1764340451576,0.0012,3080.6,3080.4,3.24632877]
[1764340451777,0.0012,3080.6,3080.1,3.24660959]
[1764340451983,0.0012,3080.6,3080.2,0.4766]
[1764340452176,0.0012,3080.6,3080.1,3.24660959]
[1764340452399,0.0012,3080.6,3080.0,0.0011]
[1764340452576,1.14155389,3080.6,3080.0,0.0011]
[1764340452767,0.30261419,3080.5,3080.0,0.0011]
[1764340452972,0.30261419,3080.4,3080.0,0.0011]
[1764340453167,0.30261419,3080.3,3080.0,0.0011]
[1764340453375,1.24075389,3080.6,3080.0,0.0011]
[1764340453694,0.30270054,3080.5,3080.0,0.0011]
[1764340453999,0.30270054,3080.4,3080.0,0.0011]
[1764340454300,1.14155389,3080.6,3080.0,0.0011]
[1764340454301,3.4123055,3080.5,3080.0,0.0011]
[1764340454503,0.40204649,3080.4,3080.0,0.0011]
[1764340454684,0.30284649,3080.3,3080.0,0.0011]
[1764340454881,0.30284649,3080.2,3080.0,0.0011]
[1764340455102,0.30284649,3080.1,3080.0,0.0011]
[1764340455800,3.24733195,3080.6,3080.0,0.0011]
[1764340456006,0.70029659,3080.5,3080.0,0.0011]
[1764340456301,3.24643703,3080.3,3080.0,0.0011]
[1764340456483,0.30300398,3080.2,3080.0,0.0011]
[1764340456687,0.30300398,3080.1,3080.0,0.0011]
[1764340457394,0.70620398,3080.1,3080.0,0.0011]
[1764340458209,0.70620398,3080.1,3080.0,0.4774]
[1764340458210,0.30300398,3080.1,3080.0,0.4774]
[1764340458708,0.2172,3080.6,3080.0,0.4774]
[1764340458709,0.30314208,3080.5,3080.0,4.21785324]
[1764340458907,0.0012,3080.6,3080.1,0.03246647]
[1764340459207,0.0012,3080.6,3080.2,0.405504]
[1764340459375,0.0012,3080.6,3080.2,0.43796942]
[1764340459572,0.0012,3080.6,3080.2,0.93166942]
[1764340460092,3.24732873,3080.6,3080.0,0.72669411]
[1764340460303,0.4032,3080.1,3080.0,0.0011]
[1764340460503,3.54985771,3080.1,3080.0,0.0011]
[1764340460703,0.30320988,3080.1,3080.0,0.0011]
[1764340461297,0.77070988,3080.1,3080.0,0.0011]
[1764340461620,0.77070988,3080.1,3079.5,0.001]
[1764340461621,0.0992,3079.7,3079.5,0.001]
[1764340461795,2.15998706,3079.6,3079.5,0.001]
[1764340461997,3.56908117,3079.6,3079.5,0.001]
[1764340462188,0.0992,3079.2,3078.8,0.001]
[1764340462386,4.23910732,3078.9,3078.8,0.001]
[1764340462587,5.24120366,3078.9,3078.8,0.001]
[1764340462799,5.70870366,3078.9,3078.8,0.001]
[1764340463537,5.70870366,3078.9,3077.9,0.001]
[1764340463538,0.0992,3078.0,3077.9,0.001]
[1764340463831,0.61840988,3078.0,3077.9,0.001]
[1764340463996,1.08590988,3078.0,3077.9,0.001]
[1764340464187,1.28165383,3078.0,3077.9,0.001]
[1764340464383,5.95499729,3078.0,3077.9,0.001]
[1764340465133,1.44054794,3078.0,3077.9,0.001]
[1764340465421,5.25611083,3078.0,3077.9,0.001]
[1764340465588,5.04011083,3078.0,3077.9,0.001]
[1764340465783,1.79124794,3078.0,3077.9,0.001]
[1764340466011,1.02880399,3078.0,3077.9,0.001]
[1764340466228,1.24480399,3078.0,3077.9,0.001]
[1764340466592,1.02880399,3078.0,3077.9,0.001]
[1764340466792,0.94159411,3078.0,3077.9,0.001]
[1764340467428,4.657957,3078.0,3077.9,0.001]
[1764340467590,5.05833748,3078.0,3077.9,0.001]
[1764340467788,1.12597459,3078.0,3077.9,0.001]
[1764340467992,0.216,3078.1,3077.9,0.001]
[1764340468287,0.216,3078.0,3077.9,0.001]
[1764340468492,0.216,3078.1,3077.9,0.001]
[1764340469128,0.0992,3078.5,3077.9,0.001]
[1764340469326,0.216,3078.1,3077.9,0.001]
[1764340469826,0.5667,3078.0,3077.9,0.001]
[1764340470125,0.86750596,3078.0,3077.9,0.001]
[1764340470325,4.37446296,3078.0,3077.9,0.001]
[1764340470524,1.24240007,3078.0,3077.9,0.001]
[1764340470823,5.05782615,3078.0,3077.9,0.001]
[1764340471313,0.30066915,3078.0,3077.9,0.001]
[1764340471492,0.216,3078.0,3077.9,0.001]
[1764340473197,3.24867181,3078.2,3077.9,0.001]
[1764340473501,0.1831,3080.9,3077.9,0.001]
[1764340473502,3.4143145,3078.9,3078.1,0.1909]
[1764340473693,10.4267561,3078.8,3077.9,0.001]
[1764340473897,0.0992,3078.2,3077.9,0.001]
[1764340474199,0.216,3078.1,3077.9,0.001]
[1764340474719,3.46486061,3078.1,3077.9,0.001]
[1764340474915,3.34786737,3078.2,3077.9,0.001]
[1764340475096,0.94159411,3078.1,3077.9,0.001]
[1764340475305,0.0992,3078.0,3077.9,0.001]
[1764340475725,0.5667,3078.0,3077.9,0.001]
[1764340475938,0.7827,3078.0,3077.9,0.001]
[1764340476450,0.33478674,3078.2,3077.9,0.001]
[1764340476613,4.11939239,3079.0,3077.9,0.001]
[1764340476614,0.72559411,3078.0,3077.9,0.001]
[1764340476817,3.81548169,3078.1,3077.9,0.001]